fUSD/lending_fUSD_20260529
["ID","MTS","AMOUNT","RATE_DAILY","PERIOD"]
[423310425,1780049442000,-150.0,0.0001415,2]
[423310503,1780049443000,-150.0,0.0001441,2]
[423310496,1780049443000,-150.0,0.00014394,2]
[423310498,1780049443000,-195.03198619,0.00014396,2]
[423310500,1780049443000,-617.382173,0.000144,2]
[423310488,1780049443000,-195.03198619,0.00014366,2]
[423310494,1780049443000,-150.0,0.00014387,2]
[423310495,1780049443000,-150.0,0.00014387,2]
[423310493,1780049443000,-150.0,0.00014387,2]
[423310489,1780049443000,-150.0,0.00014373,2]
[423310501,1780049443000,-617.382173,0.000144,2]
[423310497,1780049443000,-150.0,0.00014396,2]
[423310502,1780049443000,-617.382173,0.000144,2]
[423310511,1780049443000,-150.0,0.00014441,2]
[423310504,1780049443000,-195.03198619,0.00014411,2]
[423310507,1780049443000,-150.0,0.00014429,2]
[423310506,1780049443000,-195.03198619,0.00014426,2]
[423310508,1780049443000,-8192.69079487,0.00014433,2]
[423310512,1780049443000,-195.03198619,0.00014441,2]
[423310514,1780049443000,-150.0,0.00014464,2]
[423310509,1780049443000,-150.30096206,0.00014437,2]
[423310513,1780049443000,-195.03198619,0.00014456,2]
[423310510,1780049443000,-150.0,0.00014441,2]
[423310516,1780049443000,-195.03198619,0.00014472,2]
[423310515,1780049443000,-150.0,0.00014471,2]
[423310487,1780049443000,-150.0,0.00014359,2]
[423310505,1780049443000,-150.0,0.00014424,2]
[423310485,1780049443000,-150.0,0.00014351,2]
[423310476,1780049443000,-500.0,0.00014301,2]
[423310484,1780049443000,-195.03198619,0.00014335,2]
[423310464,1780049443000,-151.0,0.00014258,2]
[423310463,1780049443000,-1545.0,0.00014258,2]
[423310465,1780049443000,-153.0,0.00014258,2]
[423310462,1780049443000,-1483.53,0.00014258,2]
[423310467,1780049443000,-150.0,0.0001426,2]
[423310466,1780049443000,-154.0,0.00014258,2]
[423310468,1780049443000,-195.03198619,0.0001426,2]
[423310469,1780049443000,-1221.0,0.00014273,2]
[423310470,1780049443000,-195.03198619,0.00014275,2]
[423310471,1780049443000,-150.0,0.00014284,2]
[423310477,1780049443000,-150.0,0.00014305,2]
[423310472,1780049443000,-150.0,0.00014289,2]
[423310478,1780049443000,-150.0,0.00014305,2]
[423310518,1780049443000,-195.03198619,0.00014487,2]
[423310479,1780049443000,-195.03198619,0.00014305,2]
[423310473,1780049443000,-195.03198619,0.0001429,2]
[423310480,1780049443000,-195.03198619,0.0001432,2]
[423310474,1780049443000,-150.0,0.00014295,2]
[423310475,1780049443000,-1803.0,0.00014301,2]
[423310482,1780049443000,-875.0,0.00014329,2]
[423310481,1780049443000,-150.0,0.00014324,2]
[423310490,1780049443000,-150.0,0.00014377,2]
[423310491,1780049443000,-195.03198619,0.00014381,2]
[423310492,1780049443000,-166.66,0.00014384,2]
[423310483,1780049443000,-150.0,0.00014331,2]
[423310486,1780049443000,-195.03198619,0.00014351,2]
[423310520,1780049443000,-195.03198619,0.00014502,2]
[423310499,1780049443000,-617.382173,0.000144,2]
[423310519,1780049443000,-150.0,0.00014498,2]
[423310551,1780049443000,-150.0,0.00014658,2]
[423310552,1780049443000,-150.0,0.00014668,2]
[423310557,1780049443000,-195.03198619,0.00014684,2]
[423310556,1780049443000,-150.0,0.00014673,2]
[423310559,1780049443000,-150.0,0.00014687,2]
[423310561,1780049443000,-150.0,0.00014687,2]
[423310563,1780049443000,-150.0,0.00014687,2]
[423310554,1780049443000,-195.03198619,0.00014668,2]
[423310564,1780049443000,-195.03198619,0.00014699,2]
[423310567,1780049443000,-150.0,0.00014705,2]
[423310566,1780049443000,-900.0,0.000147,5]
[423310565,1780049443000,-151.0,0.000147,2]
[423310549,1780049443000,-150.0,0.00014646,2]
[423310568,1780049443000,-150.0,0.00014707,2]
[423310577,1780049443000,-150.0,0.00014759,2]
[423310570,1780049443000,-150.0,0.00014714,2]
[423310573,1780049443000,-150.0,0.00014742,2]
[423310578,1780049443000,-195.03198619,0.00014759,2]
[423310571,1780049443000,-195.03198619,0.00014714,2]
[423310572,1780049443000,-195.03198619,0.00014729,2]
[423310576,1780049443000,-150.0,0.00014756,2]
[423310574,1780049443000,-195.03198619,0.00014744,2]
[423310575,1780049443000,-150.0,0.00014752,2]
[423310580,1780049443000,-2000.0,0.0001477,2]
[423310579,1780049443000,-2000.0,0.0001477,2]
[423310517,1780049443000,-150.0,0.00014487,2]
[423310569,1780049443000,-150.0,0.00014714,2]
[423310547,1780049443000,-195.03198619,0.00014638,2]
[423310581,1780049443000,-2000.0,0.0001477,2]
[423310546,1780049443000,-150.0,0.00014638,2]
[423310548,1780049443000,-150.0,0.0001464,2]
[423310521,1780049443000,-150.0,0.00014509,2]
[423310525,1780049443000,-150.0,0.00014532,2]
[423310524,1780049443000,-150.0,0.00014525,2]
[423310523,1780049443000,-150.0,0.00014518,2]
[423310526,1780049443000,-195.03198619,0.00014532,2]
[423310527,1780049443000,-150.0,0.00014533,2]
[423310529,1780049443000,-195.03198619,0.00014547,2]
[423310531,1780049443000,-8776.15711332,0.00014548,2]
[423310530,1780049443000,-7512.98779397,0.00014548,2]
[423310528,1780049443000,-150.0,0.00014537,2]
[423310535,1780049443000,-150.0,0.00014578,2]
[423310533,1780049443000,-150.0,0.00014565,2]
[423310522,1780049443000,-195.03198619,0.00014517,2]
[423310537,1780049443000,-195.03198619,0.00014578,2]
[423310536,1780049443000,-150.0,0.00014578,2]
[423310532,1780049443000,-195.03198619,0.00014562,2]
[423310534,1780049443000,-150.0,0.00014568,2]
[423310539,1780049443000,-4800.0,0.000146,5]
[423310538,1780049443000,-195.03198619,0.00014593,2]
[423310541,1780049443000,-195.03198619,0.00014608,2]
[423310540,1780049443000,-150.0,0.00014603,2]
[423310544,1780049443000,-150.0,0.00014623,2]
[423310543,1780049443000,-150.0,0.00014612,2]
[423310550,1780049443000,-195.03198619,0.00014653,2]
[423310545,1780049443000,-195.03198619,0.00014623,2]
[423310624,1780049444000,-163.0,0.0001488,2]
[423310621,1780049444000,-2000.0,0.0001486,2]
[423310620,1780049444000,-130236.74390276,0.00014852,2]
[423310618,1780049444000,-151.0,0.00014852,2]
[423310616,1780049444000,-151.0,0.00014852,2]
[423310617,1780049444000,-151.0,0.00014852,2]
[423310607,1780049444000,-150.0,0.0001485,2]
[423310611,1780049444000,-812.78,0.00014851,2]
[423310615,1780049444000,-500.0,0.00014851,2]
[423310628,1780049444000,-150.0,0.00014895,2]
[423310619,1780049444000,-151.0,0.00014852,2]
[423310622,1780049444000,-195.03198619,0.00014865,2]
[423310629,1780049444000,-195.03198619,0.00014895,2]
[423310623,1780049444000,-150.0,0.00014871,2]
[423310626,1780049444000,-150.0,0.00014882,2]
[423310627,1780049444000,-150.0,0.00014893,2]
[423310639,1780049444000,-151.0,0.000149,2]
[423310631,1780049444000,-715.48,0.00014899,2]
[423310630,1780049444000,-863.47,0.00014899,2]
[423310635,1780049444000,-500.0,0.000149,2]
[423310634,1780049444000,-22142.45254127,0.000149,2]
[423310632,1780049444000,-566.33999559,0.000149,2]
[423310633,1780049444000,-10000.0,0.000149,2]
[423310636,1780049444000,-7512.98779397,0.000149,2]
[423310609,1780049444000,-724.77,0.00014851,2]
[423310625,1780049444000,-195.03198619,0.0001488,2]
[423310610,1780049444000,-637.37,0.00014851,2]
[423310596,1780049444000,-195.03198619,0.0001482,2]
[423310614,1780049444000,-500.0,0.00014851,2]
[423310638,1780049444000,-151.0,0.000149,2]
[423310590,1780049444000,-150.0,0.00014799,2]
[423310586,1780049444000,-195.03198619,0.00014774,2]
[423310582,1780049444000,-2000.0,0.0001477,2]
[423310588,1780049444000,-150.0,0.00014782,2]
[423310587,1780049444000,-150.0,0.00014777,2]
[423310583,1780049444000,-998.58,0.0001477,2]
[423310589,1780049444000,-195.03198619,0.0001479,2]
[423310593,1780049444000,-195.03198619,0.00014805,2]
[423310584,1780049444000,-2000.0,0.00014774,2]
[423310592,1780049444000,-150.0,0.00014805,2]
[423310591,1780049444000,-900.0,0.000148,5]
[423310605,1780049444000,-2000.0,0.0001485,2]
[423310585,1780049444000,-1749.41,0.00014774,2]
[423310594,1780049444000,-150.0,0.00014812,2]
[423310597,1780049444000,-195.03198619,0.00014835,2]
[423310598,1780049444000,-5088.57093731,0.00014836,2]
[423310602,1780049444000,-651.81325378,0.00014849,2]
[423310600,1780049444000,-150.0,0.00014846,2]
[423310601,1780049444000,-150.0,0.00014847,2]
[423310603,1780049444000,-3141.70262466,0.0001485,2]
[423310599,1780049444000,-150.0,0.00014836,2]
[423310604,1780049444000,-2000.0,0.0001485,2]
[423310606,1780049444000,-150.0,0.0001485,2]
[423310613,1780049444000,-1519.08,0.00014851,2]
[423310612,1780049444000,-790.5,0.00014851,2]
[423310595,1780049444000,-350.0,0.00014814,2]
[423310637,1780049444000,-151.0,0.000149,2]
[423310608,1780049444000,-195.03198619,0.0001485,2]
[423310641,1780049444000,-900.0,0.000149,5]
[423310673,1780049444000,-168.2651148,0.00014986,2]
[423310672,1780049444000,-500.0,0.00014986,2]
[423310674,1780049444000,-150.24304197,0.00014986,2]
[423310675,1780049444000,-217.23219505,0.00014986,2]
[423310679,1780049444000,-154.125904,0.00014986,2]
[423310681,1780049444000,-152.46068316,0.00014986,2]
[423310686,1780049444000,-637.37,0.00014988,2]
[423310677,1780049444000,-227.52200583,0.00014986,2]
[423310683,1780049444000,-327745.7125859,0.00014987,2]
[423310684,1780049444000,-42606.2243924,0.00014987,2]
[423310676,1780049444000,-276.9758734,0.00014986,2]
[423310678,1780049444000,-154.07871726,0.00014986,2]
[423310671,1780049444000,-500.0,0.00014986,2]
[423310682,1780049444000,-195.03198619,0.00014986,2]
[423310685,1780049444000,-724.77,0.00014988,2]
[423310688,1780049444000,-790.5,0.00014988,2]
[423310697,1780049444000,-617.382173,0.00014989,2]
[423310696,1780049444000,-151.0,0.00014989,2]
[423310687,1780049444000,-812.78,0.00014988,2]
[423310698,1780049444000,-617.382173,0.00014989,2]
[423310690,1780049444000,-500.0,0.00014988,2]
[423310689,1780049444000,-1519.08,0.00014988,2]
[423310691,1780049444000,-151.46366699,0.00014989,2]
[423310692,1780049444000,-4043.9783885,0.00014989,2]
[423310695,1780049444000,-151.0,0.00014989,2]
[423310640,1780049444000,-8776.15711332,0.000149,2]
[423310680,1780049444000,-153.65997093,0.00014986,2]
[423310669,1780049444000,-790.5,0.00014986,2]
[423310693,1780049444000,-134642.6120325,0.00014989,2]
[423310670,1780049444000,-1519.08,0.00014986,2]
[423310646,1780049444000,-505.0,0.00014904,2]
[423310643,1780049444000,-9955.54564577,0.000149,2]
[423310645,1780049444000,-1866.34831534,0.000149,2]
[423310644,1780049444000,-8192.69079487,0.000149,2]
[423310647,1780049444000,-195.03198619,0.00014911,2]
[423310642,1780049444000,-745.47667698,0.000149,2]
[423310648,1780049444000,-10000.0,0.00014912,2]
[423310667,1780049444000,-637.37,0.00014986,2]
[423310649,1780049444000,-150.0,0.00014917,2]
[423310651,1780049444000,-189.91,0.00014925,2]
[423310661,1780049444000,-485170.7490684,0.00014982,2]
[423310652,1780049444000,-195.03198619,0.00014926,2]
[423310654,1780049444000,-150.0,0.00014939,2]
[423310650,1780049444000,-150.0,0.00014918,2]
[423310658,1780049444000,-195.03198619,0.00014956,2]
[423310653,1780049444000,-426.0,0.00014939,2]
[423310668,1780049444000,-812.78,0.00014986,2]
[423310665,1780049444000,-150.0,0.00014985,2]
[423310666,1780049444000,-724.77,0.00014986,2]
[423310694,1780049444000,-46492.3158612,0.00014989,2]
[423310664,1780049444000,-279962.9329384,0.00014984,2]
[423310663,1780049444000,-3176.9374299,0.00014984,2]
[423310660,1780049444000,-195.03198619,0.00014971,2]
[423310655,1780049444000,-150.0,0.00014941,2]
[423310656,1780049444000,-195.03198619,0.00014941,2]
[423310657,1780049444000,-150.0,0.00014951,2]
[423310659,1780049444000,-433.0,0.00014962,2]
[423310662,1780049444000,-151.0,0.00014982,2]
[423310747,1780049445000,-790.5,0.00014999,2]
[423310746,1780049445000,-790.5,0.00014999,2]
[423310738,1780049445000,-812.78,0.00014999,2]
[423310733,1780049445000,-637.40424159,0.00014999,2]
[423310726,1780049445000,-637.37,0.00014999,2]
[423310732,1780049445000,-637.37,0.00014999,2]
[423310729,1780049445000,-637.37,0.00014999,2]
[423310730,1780049445000,-637.37,0.00014999,2]
[423310731,1780049445000,-637.37,0.00014999,2]
[423310728,1780049445000,-637.37,0.00014999,2]
[423310734,1780049445000,-812.78,0.00014999,2]
[423310737,1780049445000,-812.78,0.00014999,2]
[423310755,1780049445000,-1519.08,0.00014999,2]
[423310740,1780049445000,-812.78,0.00014999,2]
[423310742,1780049445000,-812.78863491,0.00014999,2]
[423310744,1780049445000,-790.5,0.00014999,2]
[423310741,1780049445000,-812.78,0.00014999,2]
[423310745,1780049445000,-790.5,0.00014999,2]
[423310748,1780049445000,-790.5,0.00014999,2]
[423310753,1780049445000,-1519.08,0.00014999,2]
[423310750,1780049445000,-790.5,0.00014999,2]
[423310758,1780049445000,-1519.08,0.00014999,2]
[423310749,1780049445000,-790.5,0.00014999,2]
[423310757,1780049445000,-1519.08,0.00014999,2]
[423310727,1780049445000,-637.37,0.00014999,2]
[423310739,1780049445000,-812.78,0.00014999,2]
[423310736,1780049445000,-812.78,0.00014999,2]
[423310719,1780049445000,-724.94748951,0.00014999,2]
[423310735,1780049445000,-812.78,0.00014999,2]
[423310751,1780049445000,-790.66918433,0.00014999,2]
[423310700,1780049445000,-617.382173,0.00014989,2]
[423310711,1780049445000,-724.77,0.00014999,2]
[423310699,1780049445000,-617.382173,0.00014989,2]
[423310701,1780049445000,-151.0,0.00014997,2]
[423310710,1780049445000,-863.6596255,0.00014999,2]
[423310702,1780049445000,-151.0,0.00014997,2]
[423310706,1780049445000,-863.47,0.00014999,2]
[423310703,1780049445000,-863.47,0.00014998,2]
[423310708,1780049445000,-863.47,0.00014999,2]
[423310705,1780049445000,-151.0,0.00014998,2]
[423310707,1780049445000,-863.47,0.00014999,2]
[423310724,1780049445000,-715.64315077,0.00014999,2]
[423310709,1780049445000,-863.47,0.00014999,2]
[423310713,1780049445000,-724.77,0.00014999,2]
[423310720,1780049445000,-715.48,0.00014999,2]
[423310715,1780049445000,-724.77,0.00014999,2]
[423310721,1780049445000,-715.48,0.00014999,2]
[423310718,1780049445000,-724.77,0.00014999,2]
[423310723,1780049445000,-715.48,0.00014999,2]
[423310714,1780049445000,-724.77,0.00014999,2]
[423310716,1780049445000,-724.77,0.00014999,2]
[423310712,1780049445000,-724.77,0.00014999,2]
[423310722,1780049445000,-715.48,0.00014999,2]
[423310717,1780049445000,-724.77,0.00014999,2]
[423310725,1780049445000,-637.37,0.00014999,2]
[423310704,1780049445000,-715.48,0.00014998,2]
[423310752,1780049445000,-1519.08,0.00014999,2]
[423310743,1780049445000,-790.5,0.00014999,2]
[423310756,1780049445000,-1519.08,0.00014999,2]
[423310788,1780049445000,-500.0,0.00014999,2]
[423310785,1780049445000,-500.0,0.00014999,2]
[423310790,1780049445000,-500.0,0.00014999,2]
[423310786,1780049445000,-500.0,0.00014999,2]
[423310796,1780049445000,-500.0,0.00014999,2]
[423310798,1780049445000,-500.0,0.00014999,2]
[423310797,1780049445000,-500.0,0.00014999,2]
[423310804,1780049445000,-500.0,0.00014999,2]
[423310800,1780049445000,-500.0,0.00014999,2]
[423310801,1780049445000,-500.0,0.00014999,2]
[423310805,1780049445000,-500.0,0.00014999,2]
[423310806,1780049445000,-500.0,0.00014999,2]
[423310789,1780049445000,-500.0,0.00014999,2]
[423310799,1780049445000,-500.0,0.00014999,2]
[423310808,1780049445000,-500.0,0.00014999,2]
[423310807,1780049445000,-500.0,0.00014999,2]
[423310809,1780049445000,-500.0,0.00014999,2]
[423310812,1780049445000,-500.0,0.00014999,2]
[423310815,1780049445000,-500.0,0.00014999,2]
[423310810,1780049445000,-500.0,0.00014999,2]
[423310811,1780049445000,-500.0,0.00014999,2]
[423310813,1780049445000,-500.0,0.00014999,2]
[423310814,1780049445000,-500.0,0.00014999,2]
[423310817,1780049445000,-500.0,0.00014999,2]
[423310816,1780049445000,-500.0,0.00014999,2]
[423310754,1780049445000,-1519.08,0.00014999,2]
[423310803,1780049445000,-500.0,0.00014999,2]
[423310787,1780049445000,-500.0,0.00014999,2]
[423310802,1780049445000,-500.0,0.00014999,2]
[423310784,1780049445000,-500.0,0.00014999,2]
[423310760,1780049445000,-1519.23240084,0.00014999,2]
[423310762,1780049445000,-151.0,0.00014999,2]
[423310759,1780049445000,-1519.08,0.00014999,2]
[423310768,1780049445000,-500.0,0.00014999,2]
[423310783,1780049445000,-500.0,0.00014999,2]
[423310765,1780049445000,-500.0,0.00014999,2]
[423310764,1780049445000,-500.0,0.00014999,2]
[423310769,1780049445000,-500.0,0.00014999,2]
[423310767,1780049445000,-500.0,0.00014999,2]
[423310761,1780049445000,-151.0,0.00014999,2]
[423310763,1780049445000,-195.094912,0.00014999,2]
[423310771,1780049445000,-500.0,0.00014999,2]
[423310770,1780049445000,-500.0,0.00014999,2]
[423310775,1780049445000,-500.0,0.00014999,2]
[423310766,1780049445000,-500.0,0.00014999,2]
[423310772,1780049445000,-500.0,0.00014999,2]
[423310774,1780049445000,-500.0,0.00014999,2]
[423310781,1780049445000,-500.0,0.00014999,2]
[423310791,1780049445000,-500.0,0.00014999,2]
[423310782,1780049445000,-500.0,0.00014999,2]
[423310780,1780049445000,-500.0,0.00014999,2]
[423310793,1780049445000,-500.0,0.00014999,2]
[423310776,1780049445000,-500.0,0.00014999,2]
[423310779,1780049445000,-500.0,0.00014999,2]
[423310777,1780049445000,-500.0,0.00014999,2]
[423310773,1780049445000,-500.0,0.00014999,2]
[423310778,1780049445000,-500.0,0.00014999,2]
[423310795,1780049445000,-500.0,0.00014999,2]
[423310834,1780049446000,-500.0,0.00014999,2]
[423310823,1780049446000,-500.0,0.00014999,2]
[423310835,1780049446000,-500.0,0.00014999,2]
[423310833,1780049446000,-500.0,0.00014999,2]
[423310831,1780049446000,-500.0,0.00014999,2]
[423310832,1780049446000,-500.0,0.00014999,2]
[423310825,1780049446000,-500.0,0.00014999,2]
[423310827,1780049446000,-500.0,0.00014999,2]
[423310822,1780049446000,-500.0,0.00014999,2]
[423310828,1780049446000,-500.0,0.00014999,2]
[423310826,1780049446000,-500.0,0.00014999,2]
[423310830,1780049446000,-500.0,0.00014999,2]
[423310829,1780049446000,-500.0,0.00014999,2]
[423310821,1780049446000,-500.0,0.00014999,2]
[423310820,1780049446000,-500.0,0.00014999,2]
[423310819,1780049446000,-500.0,0.00014999,2]
[423310818,1780049446000,-500.0,0.00014999,2]
[423310840,1780049446000,-500.0,0.00014999,2]
[423310824,1780049446000,-500.0,0.00014999,2]
[423310839,1780049446000,-500.0,0.00014999,2]
[423310851,1780049446000,-310.82954872,0.00014999,2]
[423310837,1780049446000,-500.0,0.00014999,2]
[423310861,1780049446000,-566.21308845,0.00013699,2]
[423310862,1780049446000,-193.90542993,0.00013699,2]
[423310858,1780049446000,-21.83098012,0.00012406,2]
[423310859,1780049446000,-658.01803069,0.00012406,2]
[423310860,1780049446000,-674.71515568,0.00013699,2]
[423310857,1780049446000,-679.84901081,0.00012406,2]
[423310853,1780049446000,-300.0,0.00014999,2]
[423310849,1780049446000,-300.0,0.00014999,2]
[423310855,1780049446000,-1418019.69801798,0.00015,2]
[423310852,1780049446000,-300.0,0.00014999,2]
[423310843,1780049446000,-500.0,0.00014999,2]
[423310847,1780049446000,-300.0,0.00014999,2]
[423310845,1780049446000,-500.0,0.00014999,2]
[423310846,1780049446000,-165.86041902,0.00014999,2]
[423310842,1780049446000,-500.0,0.00014999,2]
[423310844,1780049446000,-500.0,0.00014999,2]
[423310836,1780049446000,-500.0,0.00014999,2]
[423310838,1780049446000,-500.0,0.00014999,2]
[423310854,1780049446000,-310.00034415,0.00014999,2]
[423310841,1780049446000,-500.0,0.00014999,2]
[423310872,1780049448000,-679.84901081,0.00012406,2]
[423310868,1780049448000,-679.84901081,0.00012406,2]
[423310867,1780049448000,-679.84901081,0.00012406,2]
[423310869,1780049448000,-193.82197838,0.00012406,2]
[423310871,1780049448000,-679.84901081,0.00012406,2]
[423310870,1780049448000,-486.02703243,0.00012406,2]
[423310875,1780049448000,-893.27774389,0.00013699,2]
[423310876,1780049448000,-153.74507031,0.00013699,2]
[423310873,1780049448000,-679.84901081,0.00012406,2]
[423310877,1780049448000,-1240.92824413,0.00013699,2]
[423310880,1780049448000,-1240.92824413,0.00013699,2]
[423310879,1780049448000,-1240.92824413,0.00013699,2]
[423310881,1780049448000,-1070.11682249,0.00013699,2]
[423310878,1780049448000,-1240.92824413,0.00013699,2]
[423310874,1780049448000,-150.0,0.00013461,2]
[423310892,1780049449000,-679.84901081,0.00012406,2]
[423310895,1780049449000,-679.84901081,0.00012406,2]
[423310897,1780049449000,-679.84901081,0.00012406,2]
[423310903,1780049449000,-679.84901081,0.00012406,2]
[423310899,1780049449000,-679.84901081,0.00012406,2]
[423310896,1780049449000,-679.84901081,0.00012406,2]
[423310893,1780049449000,-370.12586537,0.00012406,2]
[423310900,1780049449000,-679.84901081,0.00012406,2]
[423310898,1780049449000,-679.84901081,0.00012406,2]
[423310894,1780049449000,-309.72314544,0.00012406,2]
[423310883,1780049449000,-679.84901081,0.00012406,2]
[423310888,1780049449000,-215.49380138,0.00012406,2]
[423310886,1780049449000,-243.26081127,0.00012406,2]
[423310890,1780049449000,-679.84901081,0.00012406,2]
[423310887,1780049449000,-436.58819954,0.00012406,2]
[423310889,1780049449000,-464.35520943,0.00012406,2]
[423310885,1780049449000,-679.84901081,0.00012406,2]
[423310884,1780049449000,-679.84901081,0.00012406,2]
[423310882,1780049449000,-679.84901081,0.00012406,2]
[423310907,1780049449000,-679.84901081,0.00012406,2]
[423310891,1780049449000,-679.84901081,0.00012406,2]
[423310904,1780049449000,-679.84901081,0.00012406,2]
[423310901,1780049449000,-679.84901081,0.00012406,2]
[423310906,1780049449000,-679.84901081,0.00012406,2]
[423310902,1780049449000,-679.84901081,0.00012406,2]
[423310927,1780049449000,-679.84901081,0.00012406,2]
[423310926,1780049449000,-679.84901081,0.00012406,2]
[423310923,1780049449000,-679.84901081,0.00012406,2]
[423310922,1780049449000,-679.84901081,0.00012406,2]
[423310920,1780049449000,-679.84901081,0.00012406,2]
[423310921,1780049449000,-679.84901081,0.00012406,2]
[423310917,1780049449000,-679.84901081,0.00012406,2]
[423310914,1780049449000,-679.84901081,0.00012406,2]
[423310918,1780049449000,-679.84901081,0.00012406,2]
[423310924,1780049449000,-679.84901081,0.00012406,2]
[423310915,1780049449000,-679.84901081,0.00012406,2]
[423310916,1780049449000,-679.84901081,0.00012406,2]
[423310925,1780049449000,-679.84901081,0.00012406,2]
[423310909,1780049449000,-679.84901081,0.00012406,2]
[423310919,1780049449000,-679.84901081,0.00012406,2]
[423310905,1780049449000,-679.84901081,0.00012406,2]
[423310911,1780049449000,-679.84901081,0.00012406,2]
[423310910,1780049449000,-679.84901081,0.00012406,2]
[423310912,1780049449000,-679.84901081,0.00012406,2]
[423310913,1780049449000,-679.84901081,0.00012406,2]
[423310908,1780049449000,-679.84901081,0.00012406,2]
[423310955,1780049450000,-1240.92824413,0.00013699,2]
[423310951,1780049450000,-1240.92824413,0.00013699,2]
[423310953,1780049450000,-1240.92824413,0.00013699,2]
[423310954,1780049450000,-1240.92824413,0.00013699,2]
[423310950,1780049450000,-1240.92824413,0.00013699,2]
[423310949,1780049450000,-1240.92824413,0.00013699,2]
[423310952,1780049450000,-1240.92824413,0.00013699,2]
[423310947,1780049450000,-1240.92824413,0.00013699,2]
[423310962,1780049450000,-1240.92824413,0.00013699,2]
[423310957,1780049450000,-1240.92824413,0.00013699,2]
[423310958,1780049450000,-1240.92824413,0.00013699,2]
[423310956,1780049450000,-1240.92824413,0.00013699,2]
[423310959,1780049450000,-1240.92824413,0.00013699,2]
[423310961,1780049450000,-1240.92824413,0.00013699,2]
[423310964,1780049450000,-1240.92824413,0.00013699,2]
[423310948,1780049450000,-1240.92824413,0.00013699,2]
[423310967,1780049450000,-1240.92824413,0.00013699,2]
[423310945,1780049450000,-1240.92824413,0.00013699,2]
[423310933,1780049450000,-1240.92824413,0.00013699,2]
[423310944,1780049450000,-1240.92824413,0.00013699,2]
[423310931,1780049450000,-170.81142164,0.00013699,2]
[423310932,1780049450000,-1240.92824413,0.00013699,2]
[423310928,1780049450000,-679.84901081,0.00012406,2]
[423310930,1780049450000,-500.0,0.00013698,2]
[423310929,1780049450000,-679.84901081,0.00012406,2]
[423310934,1780049450000,-1240.92824413,0.00013699,2]
[423310939,1780049450000,-1240.92824413,0.00013699,2]
[423310946,1780049450000,-1240.92824413,0.00013699,2]
[423310963,1780049450000,-1240.92824413,0.00013699,2]
[423310943,1780049450000,-1240.92824413,0.00013699,2]
[423310935,1780049450000,-1240.92824413,0.00013699,2]
[423310942,1780049450000,-1240.92824413,0.00013699,2]
[423310936,1780049450000,-1240.92824413,0.00013699,2]
[423310937,1780049450000,-1240.92824413,0.00013699,2]
[423310940,1780049450000,-1240.92824413,0.00013699,2]
[423310938,1780049450000,-1240.92824413,0.00013699,2]
[423310941,1780049450000,-1240.92824413,0.00013699,2]
[423310960,1780049450000,-1240.92824413,0.00013699,2]
[423310972,1780049450000,-1240.92824413,0.00013699,2]
[423310966,1780049450000,-1240.92824413,0.00013699,2]
[423310987,1780049450000,-1240.92824413,0.00013699,2]
[423310984,1780049450000,-1240.92824413,0.00013699,2]
[423310965,1780049450000,-1240.92824413,0.00013699,2]
[423310992,1780049450000,-17154.0,0.00014133,2]
[423310995,1780049450000,-1420.99970738,0.00015,2]
[423310993,1780049450000,-61236.85566599,0.00015,2]
[423310997,1780049450000,-297.41716793,0.00015,2]
[423310988,1780049450000,-1240.92824413,0.00013699,2]